bitfinex-derivatives/quotes_ETHF0:USTF0_20250831
["timestamp","ask_amount","ask_price","bid_price","bid_amount"]
[1756627383069,0.485,4453.3,4453.2,3.4328]
[1756627383665,0.485,4453.3,4453.2,3.2078]
[1756627383862,0.1959,4452.8,4452.7,3.2078]
[1756627384066,0.485,4452.8,4452.7,3.4328]
[1756627384469,0.2891,4452.8,4452.7,3.4328]
[1756627384667,3.2078,4453.7,4452.7,3.4328]
[1756627384867,0.82445896,4453.6,4452.7,3.4328]
[1756627385170,0.485,4453.3,4452.7,3.4328]
[1756627385771,0.2891,4453.2,4452.7,3.4328]
[1756627385967,0.2891,4453.1,4452.7,3.4328]
[1756627386173,0.2891,4453.6,4452.7,3.4328]
[1756627386371,0.2891,4453.4,4452.7,3.4328]
[1756627386568,0.79599604,4453.3,4452.7,3.4328]
[1756627386768,3.2078,4453.7,4452.7,3.4328]
[1756627386969,0.2891,4453.5,4452.7,3.4328]
[1756627387167,0.79588211,4453.4,4452.7,3.4328]
[1756627387369,0.2891,4453.2,4452.7,3.4328]
[1756627387672,3.2078,4453.7,4452.7,3.4328]
[1756627387867,0.2901,4453.5,4452.7,3.4328]
[1756627388168,0.2901,4453.2,4452.7,3.4328]
[1756627388368,3.2078,4453.7,4452.7,3.4328]
[1756627388568,0.2901,4453.5,4452.7,3.4328]
[1756627388773,0.59981547,4453.4,4452.7,3.2078]
[1756627388967,3.2078,4453.7,4452.7,3.2078]
[1756627388968,0.2901,4453.1,4452.8,0.225]
[1756627389168,0.2901,4453.6,4452.8,0.225]
[1756627389368,0.4849,4453.4,4452.8,0.225]
[1756627389568,0.79461547,4453.3,4452.8,0.225]
[1756627389768,0.1948,4453.2,4452.8,0.225]
[1756627390072,0.2901,4453.6,4452.8,0.225]
[1756627390268,0.2901,4453.4,4452.8,0.225]
[1756627390469,0.2901,4453.2,4452.8,0.225]
[1756627390669,0.2901,4453.5,4452.8,0.225]
[1756627390869,0.4849,4453.3,4452.8,0.225]
[1756627403176,0.4849,4452.8,4452.7,3.2078]
[1756627403577,0.4849,4452.8,4452.7,3.4328]
[1756627405775,0.4849,4452.8,4452.7,3.2078]
[1756627405976,0.4849,4452.8,4452.7,3.4328]
[1756627408280,0.2901,4452.8,4452.7,3.4328]
[1756627410585,0.4849,4452.8,4452.7,3.4328]
[1756627414086,0.4849,4452.8,4452.7,3.2078]
[1756627414389,0.4849,4452.8,4452.7,3.4328]
[1756627415183,0.4849,4452.8,4452.7,3.2078]
[1756627415485,0.4849,4452.8,4452.7,3.4328]
[1756627419987,0.4849,4452.8,4452.7,0.225]
[1756627422189,3.2078,4453.6,4452.7,0.225]
[1756627422382,0.2856,4453.0,4452.7,0.225]
[1756627422689,0.2856,4453.4,4452.7,0.225]
[1756627422888,0.2856,4453.2,4452.7,0.225]
[1756627423181,0.4807,4453.2,4452.7,0.225]
[1756627423677,0.1951,4453.0,4452.7,0.225]
[1756627423880,0.22456,4453.5,4452.7,0.225]
[1756627424086,0.89077755,4453.4,4452.7,0.225]
[1756627424288,0.2856,4453.2,4452.7,0.225]
[1756627424483,0.2856,4453.0,4452.7,0.225]
[1756627424683,0.4807,4453.0,4452.7,0.225]
[1756627426890,0.4807,4453.0,4452.8,0.21058763]
[1756627427088,0.4807,4453.0,4452.9,0.43558763]
[1756627434994,0.4807,4453.0,4452.9,0.225]
[1756627443106,3.2078,4453.6,4452.9,0.44957]
[1756627443300,3.2078,4454.1,4453.4,3.2078]
[1756627443506,0.2856,4453.9,4453.5,0.225]
[1756627443706,3.2078,4454.1,4453.5,0.225]
[1756627444005,1.08567663,4454.0,4453.6,0.2099918]
[1756627444205,0.2856,4453.8,4453.7,0.2099918]
[1756627444611,3.2078,4454.1,4453.7,0.2099918]
[1756627444806,0.2856,4454.0,4453.8,0.4349918]
[1756627445012,0.2856,4454.0,4453.8,0.225]
[1756627445610,0.2856,4454.0,4453.9,3.2078]
[1756627452009,32.346,4455.3,4453.9,3.2078]
[1756627452317,0.2782,4455.1,4454.0,0.225]
[1756627452613,0.2782,4454.9,4454.0,0.225]
[1756627453811,3.2078,4455.4,4454.6,3.2078]
[1756627454015,0.4638,4454.8,4454.7,0.225]
[1756627455014,0.2782,4455.3,4454.7,5.06203419]
[1756627455220,0.4638,4455.3,4455.2,3.2078]
[1756627455418,0.4638,4455.3,4455.2,3.4328]
[1756627455915,0.2782,4455.3,4455.2,3.4328]
[1756627456415,0.2782,4456.4,4455.2,3.64103149]
[1756627456715,0.2782,4456.3,4455.2,3.4328]
[1756627456914,0.2782,4456.4,4455.2,3.4328]
[1756627457112,0.2782,4456.2,4455.3,0.21045646]
[1756627457316,0.22442,4456.4,4455.2,3.4328]
[1756627457513,0.2782,4456.3,4456.1,3.2078]
[1756627457715,0.4638,4456.3,4456.2,3.4328]
[1756627459218,0.2782,4456.3,4456.2,3.4328]
[1756627459516,3.2078,4457.6,4456.2,3.83668]
[1756627459713,0.2782,4457.4,4456.2,3.83668]
[1756627459913,0.22437,4457.5,4456.2,44.2328]
[1756627460211,0.22437,4457.4,4456.2,44.2328]
[1756627460416,0.22437,4457.5,4456.2,44.2328]
[1756627460820,0.2782,4457.4,4456.2,44.2328]
[1756627461010,3.2078,4457.6,4456.2,44.2328]
[1756627461209,0.2782,4457.4,4456.2,44.2328]
[1756627461410,0.2782,4457.4,4456.3,0.40387]
[1756627461614,0.2782,4457.4,4456.4,0.225]
[1756627462610,0.1856,4457.2,4457.1,3.2078]
[1756627462817,0.4638,4457.2,4457.1,3.4328]
[1756627469923,3.2078,4458.6,4457.1,3.4328]
[1756627470122,0.8204834,4458.5,4457.1,3.4328]
[1756627470325,0.22432,4458.5,4457.1,3.4328]
[1756627470523,0.2782,4458.3,4457.1,3.4328]
[1756627470724,0.22432,4458.5,4457.1,3.4328]
[1756627471028,0.2782,4458.4,4457.1,3.4328]
[1756627471230,0.22433,4458.4,4457.1,3.4328]
[1756627471422,0.2782,4458.5,4457.1,3.4328]
[1756627471624,0.2782,4458.3,4457.1,3.4328]
[1756627471823,0.22433,4458.4,4457.1,3.4328]
[1756627472022,3.2078,4458.6,4457.1,3.4328]
[1756627472220,0.2782,4458.4,4457.1,3.4328]
[1756627472417,0.22432,4458.5,4457.1,3.4328]
[1756627472722,0.2782,4458.3,4457.1,3.4328]
[1756627472921,3.2078,4458.6,4457.1,3.4328]
[1756627472922,0.22432,4458.5,4457.1,3.4328]
[1756627473123,0.82067083,4458.4,4457.1,3.4328]
[1756627473426,0.59634083,4458.3,4457.1,3.4328]
[1756627473618,0.22432,4458.5,4457.1,3.4328]
[1756627473824,0.2782,4458.3,4457.1,3.4328]
[1756627474129,0.22432,4458.5,4457.1,3.4328]
[1756627474323,0.2782,4458.3,4457.1,3.4328]
[1756627474626,0.59672017,4458.2,4457.1,3.4328]
[1756627474829,0.2782,4458.5,4457.1,3.4328]
[1756627475026,0.2782,4458.3,4457.8,3.2078]
[1756627475227,0.4638,4458.1,4457.9,0.225]
[1756627478228,0.59723122,4458.0,4457.9,0.225]
[1756627478433,1.09723122,4458.0,4457.9,0.225]
[1756627478634,0.5,4457.9,4457.8,3.2078]
[1756627478834,0.5,4457.9,4457.8,3.4328]
[1756627479734,1.09746601,4457.9,4457.8,3.4328]
[1756627480827,3.2078,4459.1,4457.8,7.4328]
[1756627481028,3.2078,4459.1,4457.8,3.4328]
[1756627481029,0.303,4458.9,4457.8,3.4328]
[1756627481229,0.59768686,4458.8,4457.8,3.2078]
[1756627481437,0.303,4458.6,4457.9,0.226]
[1756627482337,0.5,4458.4,4457.9,0.226]
[1756627483130,0.5,4458.4,4458.0,0.21033763]
[1756627483326,3.2078,4459.1,4457.9,0.226]
[1756627483327,0.197,4458.2,4457.9,0.226]
[1756627483531,0.303,4458.9,4458.0,0.21033763]
[1756627483740,0.303,4458.7,4457.9,0.226]
[1756627483937,0.79572394,4458.6,4458.0,0.21033763]
[1756627484137,0.303,4458.4,4458.1,0.226]
[1756627484337,0.5,4458.2,4458.1,0.226]
[1756627484637,0.5,4458.2,4458.1,0.43633691]
[1756627485434,1.0992657,4458.2,4458.1,0.43633691]
[1756627485633,1.0992657,4458.2,4458.1,0.21033691]
[1756627485834,1.0992657,4458.2,4458.1,0.43633691]
[1756627489243,1.0992657,4458.2,4458.1,0.226]
[1756627489543,1.0992657,4458.2,4458.1,0.43633691]
[1756627490047,0.5992657,4458.2,4458.1,0.43633691]
[1756627490240,1.0992657,4458.2,4458.1,0.43633691]
[1756627490440,1.0992657,4458.2,4458.1,0.21033691]
[1756627490739,1.0992657,4458.2,4458.1,0.43533691]
[1756627492140,0.9022657,4458.2,4458.1,0.43533691]
[1756627492541,1.0992657,4458.2,4458.1,0.43533691]
[1756627493850,1.0992657,4458.2,4458.1,0.21033691]
[1756627494054,1.0992657,4458.2,4458.1,0.43533691]
[1756627495956,1.0992657,4458.2,4458.1,0.21033691]
[1756627496154,1.0992657,4458.2,4458.1,0.43533691]
[1756627496859,1.0992657,4458.2,4458.1,0.21033691]
[1756627497061,1.0992657,4458.2,4458.1,0.43533691]
[1756627499363,1.10035525,4458.2,4458.1,0.43533691]
[1756627499858,1.10035525,4458.2,4458.1,0.225]
[1756627500158,1.10035525,4458.2,4458.1,0.43533559]
[1756627500662,1.10035525,4458.2,4458.1,0.225]
[1756627500961,1.10035525,4458.2,4458.1,0.43533559]
[1756627501362,0.5,4458.2,4458.1,0.43533559]
[1756627502760,0.5,4458.2,4458.1,0.21033559]
[1756627502761,4.5,4458.2,4458.1,0.21033559]
[1756627503061,0.5,4457.9,4457.7,0.225]
[1756627503261,1.1004813,4457.8,4457.7,0.225]
[1756627503862,0.7974813,4457.8,4457.7,0.225]
[1756627504458,0.7974813,4457.8,4456.6,1.434]
[1756627504459,0.197,4457.4,4456.8,3.2078]
[1756627504663,0.5,4456.9,4456.8,3.2078]
[1756627504856,0.5,4456.9,4456.8,3.4328]
[1756627506960,0.5,4456.9,4456.8,3.4338]
[1756627508058,0.5,4456.9,4456.8,3.2078]
[1756627508254,0.2769,4458.2,4456.8,3.6226]
[1756627508557,0.2769,4458.0,4457.6,0.21]
[1756627508758,0.4763,4458.0,4457.9,0.3988]
[1756627509260,1.07653792,4458.0,4457.9,0.3988]
[1756627509665,3.2078,4459.0,4458.1,0.1888]
[1756627509865,1.1013957,4458.9,4458.3,0.21]
[1756627510166,0.7995957,4458.8,4458.7,0.3988]
[1756627510464,0.7995957,4458.8,4458.7,0.6248]
[1756627510666,1.0764957,4458.8,4458.2,0.21]
[1756627510867,0.1994,4458.3,4458.0,3.4178]
[1756627511061,0.1994,4458.2,4458.1,0.4148]
[1756627511255,0.4763,4458.2,4458.1,0.6248]
[1756627512766,0.2769,4458.2,4458.1,0.6248]
[1756627513067,0.4763,4458.3,4458.2,0.3988]
[1756627514270,0.4763,4458.3,4458.2,0.6248]
[1756627515466,0.2769,4458.3,4458.2,0.6248]
[1756627515764,0.4763,4458.3,4458.2,0.6248]
[1756627516665,0.2769,4458.9,4458.3,0.21]
[1756627516865,0.59849076,4458.8,4458.3,0.21]
[1756627517057,0.2769,4458.9,4458.3,0.21]
[1756627517261,1.07479076,4458.8,4458.7,0.3988]
[1756627517566,1.07479076,4458.8,4458.7,0.6248]
[1756627518964,0.4763,4458.8,4458.7,0.6248]
[1756627520475,4.52082933,4460.2,4458.7,3.6226]
[1756627520675,0.4763,4459.3,4459.2,3.6066]
[1756627520877,0.4763,4459.3,4459.2,3.8326]
[1756627522071,0.2769,4460.1,4459.2,3.6226]
[1756627522274,0.5763,4460.2,4460.1,0.3988]
[1756627522465,0.5763,4460.2,4460.1,0.6248]
[1756627522870,0.2994,4460.2,4460.1,0.226]
[1756627523070,0.5763,4460.2,4460.1,0.226]
[1756627523271,0.2769,4460.1,4459.7,3.4178]
[1756627523471,0.2769,4459.8,4459.7,3.6066]
[1756627523671,0.1994,4459.9,4459.8,0.1888]
[1756627523971,0.1,4460.2,4460.1,0.2091]
[1756627524171,0.1,4460.2,4460.1,0.6249]
[1756627524566,0.5763,4460.2,4460.1,0.6249]
[1756627524973,0.5763,4460.2,4460.1,0.3979]
[1756627525174,0.1,4460.2,4460.1,0.6249]
[1756627526082,0.1,4460.2,4460.1,0.3979]
[1756627526284,0.1,4460.2,4460.1,0.6249]
[1756627527881,3.2078,4461.2,4460.1,0.6249]
[1756627528080,0.4763,4461.1,4461.0,0.3979]
[1756627528279,0.4763,4461.1,4461.0,0.6249]
[1756627528480,3.2078,4462.1,4461.1,0.2091]
[1756627528782,0.50104,4462.0,4461.1,0.2091]
[1756627528979,0.4763,4461.2,4461.1,0.3979]
[1756627529679,0.2769,4462.0,4461.4,0.2091]
[1756627529878,3.2078,4462.7,4461.7,0.40338]
[1756627530079,0.2769,4462.6,4462.0,0.2091]
[1756627530274,0.4763,4462.2,4462.1,0.6249]
[1756627531178,0.2769,4463.1,4462.1,4.4158]
[1756627531380,0.2769,4464.9,4463.1,0.2091]
[1756627531685,0.4763,4464.0,4463.9,3.2078]
[1756627531876,0.4763,4464.0,4463.3,3.4169]
[1756627532183,0.103,4465.5,4463.3,3.2078]
[1756627532184,0.4763,4463.4,4463.3,3.2078]
[1756627532485,0.4763,4463.4,4463.3,3.3966]
[1756627532681,0.4763,4463.4,4463.3,3.2078]
[1756627532879,0.4763,4463.4,4463.3,3.4358]
[1756627533076,0.4763,4463.4,4463.3,3.8337]
[1756627533281,0.103,4465.5,4463.3,3.8337]
[1756627533282,0.2769,4465.1,4463.4,0.2091]
[1756627533475,3.2078,4464.7,4463.5,0.228]
[1756627533675,0.204,4465.2,4464.3,3.2078]
[1756627533884,0.22398,4465.9,4462.8,0.292]
[1756627533885,0.249,4463.0,4462.8,0.292]
[1756627534189,0.249,4462.9,4462.8,0.4808]
[1756627534489,0.1532,4462.9,4462.8,0.4808]
[1756627534679,0.229,4464.2,4462.9,0.292]
[1756627534880,0.249,4463.5,4463.4,3.6886]
[1756627535080,3.2078,4464.7,4463.8,0.4808]
[1756627535280,0.0958,4464.6,4464.0,0.292]
[1756627535682,0.249,4464.6,4464.5,0.4808]
[1756627536982,0.249,4463.6,4463.5,0.4808]
[1756627537485,0.0958,4464.7,4463.6,0.292]
[1756627537686,0.0958,4464.6,4463.6,0.292]
[1756627537886,3.2078,4464.8,4463.6,0.292]
[1756627538086,0.0958,4464.7,4463.6,0.292]
[1756627538287,0.0958,4463.6,4463.4,3.4378]
[1756627538583,0.2491,4463.5,4463.4,0.23]
[1756627539289,0.1533,4463.5,4462.9,3.4916]
[1756627539485,0.1533,4463.0,4462.9,3.4916]
[1756627539685,0.2491,4463.0,4462.9,3.4916]
[1756627540089,0.1533,4463.0,4462.5,0.23]
[1756627540286,0.1533,4462.7,4462.6,0.4843]
[1756627540785,0.0958,4462.9,4462.8,0.2005]
[1756627541092,0.2491,4462.9,4462.8,0.4843]
[1756627541593,0.2491,4462.6,4462.5,0.4843]
[1756627541795,0.2491,4462.6,4462.5,0.7143]
[1756627541997,0.0958,4463.6,4462.6,0.2838]
[1756627542495,0.2491,4462.7,4462.6,0.4843]
[1756627543492,0.0958,4462.6,4462.4,3.2078]
[1756627543693,0.1533,4462.6,4462.5,0.2838]
[1756627543892,0.2491,4462.6,4462.5,0.4843]
[1756627544091,0.0958,4462.5,4462.4,3.2078]
[1756627544293,0.2491,4462.5,4462.4,3.6921]
[1756627545990,0.1533,4462.2,4462.1,0.23]
[1756627546192,0.2491,4462.2,4462.1,0.23]
[1756627546698,0.2491,4462.2,4462.1,0.2838]
[1756627547392,0.2491,4462.2,4462.1,0.4843]
[1756627547996,0.0958,4462.1,4461.9,3.4916]
[1756627548295,0.2491,4462.0,4461.9,3.6921]
[1756627550593,0.84223037,4462.0,4461.9,3.6921]
[1756627551495,0.59313037,4462.0,4461.9,3.6921]
[1756627551692,0.59313037,4462.0,4461.9,3.9221]
[1756627551995,1.46212933,4463.0,4462.9,0.2005]
[1756627552301,0.0958,4462.9,4462.3,0.2838]
[1756627552494,1.20167665,4462.9,4462.3,0.2838]
[1756627552699,0.2491,4462.7,4462.6,0.2005]
[1756627552905,0.84266414,4462.7,4462.6,0.4843]
[1756627556405,2.04434079,4462.7,4462.6,0.4843]
[1756627561504,0.2494,4462.6,4462.5,0.4843]
[1756627561703,0.84296414,4462.6,4462.5,0.4843]
[1756627562301,0.74706414,4462.6,4462.0,0.2838]
[1756627562504,0.1535,4462.1,4461.4,3.2078]
[1756627562806,0.2494,4461.6,4461.5,0.4843]
[1756627563409,0.84296414,4461.6,4461.5,0.4843]
[1756627564713,0.84296414,4461.6,4461.5,3.135463]
[1756627569312,0.84296414,4461.6,4461.5,2.934963]
[1756627570909,0.84296414,4461.6,4461.5,2.651163]
[1756627571107,2.04464079,4461.6,4461.5,2.651163]
[1756627572614,0.59356414,4461.6,4461.5,3.135363]
[1756627573413,4.40947665,4461.9,4461.5,3.135363]
[1756627573414,0.229,4461.7,4461.5,2.836763]
[1756627573721,0.28856414,4461.6,4461.5,2.836763]
[1756627574021,3.2078,4461.9,4461.8,0.1856]
[1756627574220,3.2078,4461.9,4461.8,0.4842]
[1756627574419,3.2078,4462.4,4461.8,0.1856]
[1756627574620,3.2078,4462.4,4462.3,0.1856]
[1756627574816,3.2078,4462.4,4462.3,0.4842]
[1756627576719,0.7355,4462.7,4462.6,0.1856]
[1756627577022,0.7355,4462.7,4462.6,0.4842]
[1756627577924,0.5065,4462.7,4462.6,0.4842]
[1756627578120,0.5065,4462.7,4462.4,2.651163]
[1756627578121,0.5065,4463.1,4463.0,0.1856]
[1756627578423,0.5065,4463.1,4463.0,0.4842]
[1756627578620,3.2078,4463.4,4463.0,0.4842]
[1756627578818,0.3041,4463.8,4463.1,0.2986]
[1756627579016,0.2024,4463.3,4463.2,0.4156]
[1756627579218,3.5119,4463.8,4463.2,0.4156]
[1756627579420,0.3041,4463.8,4463.7,0.4842]
[1756627580025,0.3041,4463.9,4463.7,0.1856]
[1756627580228,0.3041,4463.9,4463.8,0.4842]
[1756627580418,0.5065,4463.9,4463.8,0.4842]
[1756627580722,0.5065,4463.9,4463.7,2.651163]
[1756627580923,3.7143,4463.8,4463.7,2.651163]
[1756627581319,0.5065,4463.8,4463.7,2.651163]
[1756627581624,0.5065,4463.8,4463.7,3.135363]
[1756627583319,0.2024,4463.8,4463.7,3.135363]
[1756627583822,0.5065,4463.8,4463.7,3.135363]
[1756627584224,0.2024,4463.8,4463.7,3.135363]
[1756627584523,0.3041,4464.0,4463.8,0.2986]
[1756627584722,0.5065,4464.0,4463.9,0.4842]
[1756627585316,0.5065,4464.0,4463.9,3.135363]
[1756627585924,1.10066411,4464.0,4463.9,3.135363]
[1756627586119,0.5065,4464.0,4463.9,3.135363]
[1756627587423,3.2078,4464.3,4463.9,3.135363]
[1756627587628,3.9433,4464.3,4464.2,0.4842]
[1756627588121,0.5065,4464.3,4464.2,0.4842]
[1756627588325,0.7355,4464.3,4464.2,0.4842]
[1756627588827,0.2024,4464.3,4464.2,0.4842]
[1756627589421,0.229,4464.5,4464.3,0.2986]
[1756627589722,0.3041,4464.8,4464.5,0.2986]
[1756627589930,0.7355,4464.8,4464.7,0.4842]
[1756627590431,3.2078,4464.9,4464.8,0.4842]
[1756627591328,3.2078,4464.9,4464.8,0.7132]
[1756627592419,3.7143,4464.9,4464.8,0.4842]
[1756627592924,0.5065,4464.9,4464.8,0.4842]
[1756627594420,0.5065,4464.9,4464.7,2.651163]
[1756627594619,3.7143,4464.8,4464.7,2.651163]
[1756627597331,7.7143,4464.8,4464.7,2.651163]
[1756627597531,8.53065488,4464.8,4464.7,1.961163]
[1756627597728,8.30667488,4464.8,4464.7,1.961163]
[1756627598831,8.53667488,4464.8,4464.7,1.961163]
[1756627600830,8.53667488,4464.8,4464.7,0.65783836]
[1756627601336,8.76065488,4464.8,4463.7,0.284]
[1756627601530,3.2078,4463.8,4463.7,0.284]
[1756627601730,3.4368,4463.8,4463.7,0.284]
[1756627602339,3.4368,4463.8,4462.7,0.284]
[1756627602736,3.2078,4463.3,4462.7,0.284]
[1756627602941,0.23,4463.2,4462.7,0.284]
[1756627603334,0.23,4463.2,4463.1,0.2028]
[1756627603639,0.23,4463.2,4463.1,0.4868]
[1756627604139,0.82319351,4463.2,4463.1,0.4868]
[1756627606646,0.82319351,4463.2,4463.1,0.284]
[1756627606847,0.82319351,4463.2,4462.2,0.284]
[1756627607047,0.59319351,4463.1,4463.0,0.4868]
[1756627608643,0.59319351,4463.1,4463.0,3.137963]
[1756627611845,0.229,4463.1,4463.0,3.137963]
[1756627612046,0.82219351,4463.1,4463.0,3.137963]
[1756627617756,0.59319351,4463.1,4463.0,3.137963]
[1756627618358,0.82219351,4463.1,4463.0,3.137963]
[1756627620651,0.82219351,4463.1,4463.0,2.935163]
[1756627621557,0.82219351,4463.1,4463.0,3.137963]
[1756627622254,0.82219351,4463.1,4463.0,2.935163]
[1756627622454,6.02387016,4463.1,4463.0,2.461763]
[1756627622652,4.82219351,4463.1,4463.0,2.461763]
[1756627623258,4.82219351,4463.1,4463.0,1.34086019]
[1756627623454,4.82219351,4463.1,4463.0,0.74896019]
[1756627623853,4.82219351,4463.1,4463.0,0.23725453]
[1756627624157,6.43956595,4463.1,4462.4,0.284]
[1756627624360,3.2078,4462.5,4462.4,0.284]
[1756627624553,4.02999351,4462.5,4461.2,0.284]
[1756627624759,3.2078,4461.6,4461.5,0.4868]
[1756627624960,4.02999351,4461.6,4461.5,0.4868]
[1756627627363,4.02999351,4461.6,4461.5,3.137963]
[1756627628363,4.02999351,4461.6,4461.5,2.651163]
[1756627629365,4.02999351,4461.6,4461.5,2.940963]
[1756627630367,4.02999351,4461.6,4461.5,3.134563]
[1756627630663,0.59319351,4461.6,4461.5,7.134563]
[1756627630864,3.4368,4462.6,4462.0,0.1936]
[1756627631065,0.59340384,4462.5,4462.0,0.1936]
[1756627631263,0.59340384,4462.4,4462.0,0.1936]
[1756627631559,0.59340384,4462.3,4462.0,0.1936]
[1756627631760,3.7271,4462.6,4462.0,0.1936]
[1756627631963,0.59354411,4462.5,4462.0,0.1936]
[1756627632163,0.59354411,4462.4,4462.0,0.1936]
[1756627632462,0.59354411,4462.3,4462.0,0.1936]
[1756627632663,0.2903,4462.5,4462.0,0.1936]
[1756627632864,0.59368591,4462.4,4462.0,0.1936]
[1756627633166,0.229,4462.5,4462.0,0.1936]
[1756627634865,0.5193,4462.5,4462.0,0.1936]
[1756627635166,0.2903,4462.4,4462.0,0.1936]
[1756627635365,0.2903,4462.4,4461.6,3.2078]
[1756627635366,0.2903,4462.4,4462.1,2.651163]
[1756627637171,0.229,4462.4,4462.1,2.651163]
[1756627637664,0.4732,4462.2,4462.1,2.346263]
[1756627637862,1.06725101,4462.2,4462.1,2.346263]
[1756627638069,5.06725101,4462.2,4462.1,2.346263]
[1756627638267,5.06725101,4462.2,4462.1,1.242463]
[1756627639669,5.06725101,4462.2,4461.2,0.2898]
[1756627639871,3.2078,4461.4,4461.3,0.4834]
[1756627640070,4.03085101,4461.4,4461.3,0.4834]
[1756627641268,3.80185101,4461.4,4461.3,0.4834]
[1756627641472,4.03085101,4461.4,4461.3,0.4834]
[1756627644569,4.03085101,4461.4,4461.3,0.2898]
[1756627644770,4.03085101,4461.4,4460.6,0.2898]
[1756627644972,3.2078,4460.7,4459.8,3.2078]
[1756627645171,0.82305101,4460.6,4459.9,0.2898]
[1756627645373,0.59405101,4460.5,4459.9,0.4834]
[1756627645564,0.82305101,4460.4,4460.0,0.2898]
[1756627645770,3.2078,4460.1,4459.4,0.2898]
[1756627646076,0.59405101,4460.0,4459.9,0.4834]
[1756627646374,0.229,4460.0,4459.9,0.4834]
[1756627647574,0.138,4460.1,4460.0,0.2898]
[1756627647773,0.138,4460.1,4460.0,0.4834]
[1756627647974,0.82207995,4460.1,4460.0,0.4834]
[1756627649175,0.59307995,4460.1,4460.0,0.4834]
[1756627650272,0.59307995,4460.1,4460.0,3.134563]
[1756627651470,0.229,4460.2,4460.0,3.134563]
[1756627651669,0.229,4460.2,4460.1,0.4834]
[1756627651880,0.82198658,4460.2,4460.1,0.4834]
[1756627652276,0.59298658,4460.2,4460.1,0.4834]
[1756627652576,0.59298658,4460.2,4460.0,2.651163]
[1756627652778,0.59298658,4460.1,4460.0,2.651163]
[1756627653079,0.59298658,4460.2,4460.0,2.651163]
[1756627653280,0.59298658,4460.1,4460.0,2.651163]
[1756627653574,0.59298658,4460.2,4460.0,2.940963]
[1756627654478,0.59298658,4460.2,4460.0,2.651163]
[1756627656880,0.59298658,4460.2,4460.1,0.2898]
[1756627657087,0.59298658,4460.2,4460.1,0.4834]
[1756627659783,0.229,4460.3,4460.1,0.1936]
[1756627659990,0.229,4460.3,4460.2,0.4785]
[1756627660184,0.82132498,4460.3,4460.2,0.4785]
[1756627660388,0.82132498,4460.3,4460.2,3.129663]
[1756627662691,0.82032498,4460.3,4460.2,3.129663]
[1756627664689,0.82119149,4460.3,4460.2,3.129663]
[1756627665292,0.59319149,4460.3,4460.2,3.129663]
[1756627665592,0.82119149,4460.3,4460.2,3.129663]
[1756627669103,0.59319149,4460.3,4460.2,3.129663]
[1756627669299,0.82119149,4460.3,4460.2,3.129663]
[1756627670202,0.59319149,4460.3,4460.2,3.129663]
[1756627670403,0.82119149,4460.3,4460.2,3.129663]
[1756627673002,0.1116,4460.5,4460.2,7.129663]
[1756627673200,3.2078,4461.0,4460.9,0.4785]
[1756627675106,3.4872,4461.0,4460.9,0.4785]
[1756627675407,3.4872,4461.0,4460.9,3.129663]
[1756627675606,3.682,4461.0,4460.9,3.129663]
[1756627676704,3.682,4461.0,4460.9,2.651163]
[1756627677603,4.88712646,4461.0,4460.9,2.651163]
[1756627679010,3.682,4461.0,4460.9,2.651163]
[1756627685015,4.27471821,4461.0,4460.9,2.651163]
[1756627685215,4.27477297,4461.0,4460.9,2.651163]
[1756627695524,4.27477297,4461.0,4460.9,2.938863]
[1756627695820,4.27477297,4461.0,4460.9,3.132563]
[1756627706029,3.80057297,4461.0,4460.9,3.132563]
[1756627706232,3.2078,4461.5,4461.0,0.0337]
[1756627706434,3.2078,4461.5,4461.4,0.0876]
[1756627706733,3.4358,4461.5,4461.4,0.0876]
[1756627707121,3.2078,4461.5,4461.4,4.0876]
[1756627707325,1.21065806,4462.3,4462.0,0.0337]
[1756627707526,1.21065806,4462.4,4462.3,0.0876]
[1756627707726,1.43865806,4462.4,4462.3,0.0876]
[1756627707926,1.71375806,4462.4,4462.3,0.0876]
[1756627708136,0.5031,4462.4,4462.3,0.0876]
[1756627708336,0.5031,4462.4,4461.5,0.2617]
[1756627708337,0.2751,4462.3,4461.5,0.2617]
[1756627708636,0.2751,4462.3,4461.4,3.2078]
[1756627708637,0.6893,4462.2,4462.1,0.0539]
[1756627709134,0.5031,4462.2,4462.1,0.0876]
[1756627709634,0.6893,4462.2,4462.1,0.0876]
[1756627710123,0.6893,4462.2,4462.1,0.0539]
[1756627710328,0.4142,4462.2,4461.4,3.2078]
[1756627710529,0.2751,4462.1,4461.5,0.0337]
[1756627710728,0.6893,4462.0,4461.9,0.0876]
[1756627711031,0.6893,4462.0,4461.9,0.0539]
[1756627711236,3.8971,4462.0,4461.3,0.0337]
[1756627711435,3.6691,4462.0,4461.9,0.0876]
[1756627711636,0.228,4462.0,4461.9,0.0876]
[1756627712232,3.2078,4462.5,4461.9,4.0539]
[1756627712433,0.6893,4462.4,4462.3,0.0876]
[1756627715539,0.6883,4462.4,4462.3,0.0876]
[1756627716748,0.4613,4462.4,4462.3,0.0876]
[1756627717239,0.6883,4462.4,4462.3,0.0876]
[1756627717642,0.6883,4462.4,4462.3,0.0539]
[1756627718342,1.27724546,4462.4,4462.3,0.0539]
[1756627718544,1.27724546,4462.4,4461.4,3.2078]
[1756627718745,0.4796,4461.6,4461.5,0.0882]
[1756627720744,0.4796,4461.6,4461.5,2.739363]
[1756627721540,0.7066,4461.6,4461.5,2.651163]
[1756627721949,1.29556344,4461.6,4461.5,2.651163]